Workbook

Sheet Mittelhilfstabelle
A2: Stunde | B2: Wind | C2: Luftfeuchtigkeit | D2: Luftdruck | E2: Taupunkttemperatur | F2: Bewölkung | H2: Stunde | I2: Wind | J2: Luftfeuchtigkeit | K2: Luftdruck | L2: Taupunkttemperatur | M2: Bewölkung
A3: 00 | B3: 0 | C3: 99 | D3: 1001.4 | E3: 9 | F3: 8 | H3: 00 | I3: 0 | J3: 94 | K3: 1004.7 | L3: 10.5 | M3: 8
A4: 01 | B4: 0 | C4: 98 | D4: 1001.2 | E4: 8.8 | F4: 7 | H4: 01 | I4: 1 | J4: 89 | K4: 1004.6 | L4: 9.5 | M4: 8
A5: 02 | B5: 1 | C5: 97 | D5: 1000.6 | E5: 8.4 | F5: 7 | H5: 02 | I5: 1 | J5: 88 | K5: 1004.7 | L5: 8.6 | M5: 8
A6: 03 | B6: 0 | C6: 98 | D6: 999.6 | E6: 8.4 | F6: 7 | H6: 03 | I6: 0 | J6: 88 | K6: 1004.9 | L6: 8.4 | M6: 8
A7: 04 | B7: 0 | C7: 98 | D7: 999.6 | E7: 8.5 | F7: 7 | H7: 04 | I7: 1 | J7: 89 | K7: 1005 | L7: 8.2 | M7: 8
A8: 05 | B8: 0 | C8: 99 | D8: 999.5 | E8: 8.6 | F8: 7 | H8: 05 | I8: 0 | J8: 87 | K8: 1005.3 | L8: 7.8 | M8: 8
A9: 06 | B9: 0 | C9: 99 | D9: 999.6 | E9: 9 | F9: 5 | H9: 06 | I9: 1 | J9: 87 | K9: 1005.6 | L9: 7.7 | M9: 8
A10: 07 | B10: 1 | C10: 96 | D10: 999.3 | E10: 11.2 | F10: 2 | H10: 07 | I10: 1 | J10: 89 | K10: 1005.8 | L10: 7.9 | M10: 8
A11: 08 | B11: 1 | C11: 92 | D11: 999.4 | E11: 12.4 | F11: 1 | H11: 08 | I11: 1 | J11: 87 | K11: 1005.8 | L11: 7.3 | M11: 8
A12: 09 | B12: 1 | C12: 92 | D12: 999.1 | E12: 13.9 | F12: 6 | H12: 09 | I12: 1 | J12: 87 | K12: 1006 | L12: 7.5 | M12: 8
A13: 10 | B13: 1 | C13: 79 | D13: 999 | E13: 14 | F13: 7 | H13: 10 | I13: 1 | J13: 89 | K13: 1006 | L13: 7.5 | M13: 8
A14: 11 | B14: 1 | C14: 70 | D14: 999.2 | E14: 12.8 | F14: 7 | H14: 11 | I14: 1 | J14: 88 | K14: 1005.5 | L14: 7.9 | M14: 8
A15: 12 | B15: 1 | C15: 70 | D15: 999.9 | E15: 12.4 | F15: 8 | H15: 12 | I15: 1 | J15: 90 | K15: 1005.5 | L15: 8.5 | M15: 8
A16: 13 | B16: 1 | C16: 69 | D16: 999.8 | E16: 12.5 | F16: 8 | H16: 13 | I16: 1 | J16: 91 | K16: 1005.2 | L16: 8.7 | M16: 8
A17: 14 | B17: 1 | C17: 72 | D17: 999.7 | E17: 13.9 | F17: 8 | H17: 14 | I17: 1 | J17: 96 | K17: 1004.5 | L17: 9.2 | M17: 8
A18: 15 | B18: 1 | C18: 76 | D18: 1000.5 | E18: 12 | F18: 6 | H18: 15 | I18: 1 | J18: 97 | K18: 1004.2 | L18: 9.5 | M18: 8
A19: 16 | B19: 1 | C19: 81 | D19: 1000.7 | E19: 12.5 | F19: 7 | H19: 16 | I19: 1 | J19: 97 | K19: 1003.6 | L19: 9.7 | M19: 8
A20: 17 | B20: 1 | C20: 84 | D20: 1001 | E20: 12.4 | F20: 8 | H20: 17 | I20: 1 | J20: 97 | K20: 1002.2 | L20: 10.1 | M20: 8
A21: 18 | B21: 0 | C21: 83 | D21: 1001.5 | E21: 12.2 | F21: 8 | H21: 18 | I21: 1 | J21: 98 | K21: 1001.1 | L21: 10.8 | M21: 8
A22: 19 | B22: 1 | C22: 87 | D22: 1002 | E22: 12 | F22: 8 | H22: 19 | I22: 1 | J22: 98 | K22: 999.8 | L22: 11.6 | M22: 8
A23: 20 | B23: 0 | C23: 92 | D23: 1002.9 | E23: 12.1 | F23: 8 | H23: 20 | I23: 1 | J23: 99 | K23: 999.5 | L23: 12.3 | M23: 8
A24: 21 | B24: 0 | C24: 94 | D24: 1003.6 | E24: 12.1 | F24: 8 | H24: 21 | I24: 1 | J24: 99 | K24: 999 | L24: 12.7 | M24: 8
A25: 22 | B25: 0 | C25: 95 | D25: 1004 | E25: 11.4 | F25: 8 | H25: 22 | I25: 1 | J25: 99 | K25: 998.4 | L25: 13 | M25: 8
A26: 23 | B26: 0 | C26: 94 | D26: 1004.6 | E26: 10.7 | F26: 8 | H26: 23 | I26: 1 | J26: 99 | K26: 997.7 | L26: 13 | M26: 8
A27: Mittel | B27: =ROUND(AVERAGE(B3:B26),1) -> 0.5 | C27: =ROUND(AVERAGE(C3:C26),1) -> 88.1 | D27: =ROUND(AVERAGE(D3:D26),1) -> 1000.7 | E27: =AVERAGE(E3:E26) -> 11.3 | F27: =ROUND(AVERAGE(F3:F26),1) -> 6.8 | H27: Mittel | I27: =ROUND(AVERAGE(I3:I26),1) -> 0.9 | J27: =ROUND(AVERAGE(J3:J26),1) -> 92.6 | K27: =ROUND(AVERAGE(K3:K26),1) -> 1003.5 | L27: =AVERAGE(L3:L26) -> 9.495833333 | M27: =ROUND(AVERAGE(M3:M26),1) -> 8
E29: 2013-05-29 | L29: 2013-05-30
A32: Stunde | B32: Wind | C32: Luftfeuchtigkeit | D32: Luftdruck | E32: Taupunkttemperatur | F32: Bewölkung | H32: Stunde | I32: Wind | J32: Luftfeuchtigkeit | K32: Luftdruck | L32: Taupunkttemperatur | M32: Bewölkung
A33: 00 | B33: 1 | C33: 99 | D33: 997.1 | E33: 12.9 | F33: 8 | H33: 00 | I33: 0 | J33: 97 | K33: 1009.2 | L33: 8.2 | M33: 8
A34: 01 | B34: 1 | C34: 99 | D34: 996.8 | E34: 13 | F34: 8 | H34: 01 | I34: 0 | J34: 97 | K34: 1008.8 | L34: 7.9 | M34: 8
A35: 02 | B35: 1 | C35: 99 | D35: 996.6 | E35: 13.1 | F35: 8 | H35: 02 | I35: 0 | J35: 96 | K35: 1008.3 | L35: 8.1 | M35: 8
A36: 03 | B36: 0 | C36: 99 | D36: 996.4 | E36: 13.1 | F36: 8 | H36: 03 | I36: 0 | J36: 96 | K36: 1007.6 | L36: 7.7 | M36: 8
A37: 04 | B37: 0 | C37: 99 | D37: 996.5 | E37: 13 | F37: 8 | H37: 04 | I37: 0 | J37: 96 | K37: 1007.1 | L37: 7.1 | M37: 8
A38: 05 | B38: 0 | C38: 100 | D38: 996.9 | E38: 13.3 | F38: 8 | H38: 05 | I38: 0 | J38: 97 | K38: 1006.7 | L38: 7.3 | M38: 8
A39: 06 | B39: 1 | C39: 100 | D39: 997.3 | E39: 13.4 | F39: 8 | H39: 06 | I39: 1 | J39: 92 | K39: 1006.3 | L39: 7.8 | M39: 8
A40: 07 | B40: 1 | C40: 98 | D40: 997.6 | E40: 13.9 | F40: 7 | H40: 07 | I40: 1 | J40: 92 | K40: 1006.4 | L40: 7.8 | M40: 8
A41: 08 | B41: 0 | C41: 95 | D41: 997.9 | E41: 13.4 | F41: 7 | H41: 08 | I41: 1 | J41: 91 | K41: 1006.1 | L41: 8.3 | M41: 8
A42: 09 | B42: 1 | C42: 93 | D42: 997.8 | E42: 13.7 | F42: 8 | H42: 09 | I42: 1 | J42: 89 | K42: 1005.4 | L42: 8.8 | M42: 8
A43: 10 | B43: 1 | C43: 95 | D43: 998.1 | E43: 14 | F43: 8 | H43: 10 | I43: 1 | J43: 89 | K43: 1005 | L43: 9.2 | M43: 8
A44: 11 | B44: 1 | C44: 97 | D44: 998.2 | E44: 13.5 | F44: 8 | H44: 11 | I44: 1 | J44: 92 | K44: 1004.5 | L44: 10 | M44: 8
A45: 12 | B45: 1 | C45: 97 | D45: 998.8 | E45: 13.5 | F45: 8 | H45: 12 | I45: 1 | J45: 89 | K45: 1004.3 | L45: 10 | M45: 8
A46: 13 | B46: 0 | C46: 98 | D46: 999 | E46: 12.1 | F46: 8 | H46: 13 | I46: 1 | J46: 88 | K46: 1003.8 | L46: 10.1 | M46: 8
A47: 14 | B47: 0 | C47: 97 | D47: 999.8 | E47: 11.6 | F47: 8 | H47: 14 | I47: 0 | J47: 94 | K47: 1003.5 | L47: 10.3 | M47: 8
A48: 15 | B48: 0 | C48: 96 | D48: 1000.1 | E48: 12.3 | F48: 8 | H48: 15 | I48: 0 | J48: 97 | K48: 1003 | L48: 11 | M48: 8
A49: 16 | B49: 1 | C49: 85 | D49: 1000.5 | E49: 12.3 | F49: 6 | H49: 16 | I49: 0 | J49: 96 | K49: 1002.5 | L49: 11.5 | M49: 8
A50: 17 | B50: 0 | C50: 89 | D50: 1001.8 | E50: 11.4 | F50: 6 | H50: 17 | I50: 0 | J50: 97 | K50: 1002.3 | L50: 11.5 | M50: 8
A51: 18 | B51: 0 | C51: 90 | D51: 1002.2 | E51: 11.7 | F51: 6 | H51: 18 | I51: 1 | J51: 95 | K51: 1001.5 | L51: 10.8 | M51: 7
A52: 19 | B52: 0 | C52: 93 | D52: 1003 | E52: 11.8 | F52: 5 | H52: 19 | I52: 1 | J52: 95 | K52: 1000.7 | L52: 10.5 | M52: 8
A53: 20 | B53: 1 | C53: 95 | D53: 1003.3 | E53: 10.8 | F53: 4 | H53: 20 | I53: 0 | J53: 97 | K53: 1000.9 | L53: 10.2 | M53: 8
A54: 21 | B54: 1 | C54: 97 | D54: 1004.5 | E54: 9.7 | F54: 3 | H54: 21 | I54: 0 | J54: 98 | K54: 1001 | L54: 9.8 | M54: 8
A55: 22 | B55: 1 | C55: 98 | D55: 1005.3 | E55: 9.3 | F55: 2 | H55: 22 | I55: 0 | J55: 99 | K55: 1001.2 | L55: 10 | M55: 8
A56: 23 | B56: 1 | C56: 98 | D56: 1005.3 | E56: 8.6 | F56: 3 | H56: 23 | I56: 1 | J56: 99 | K56: 1001.6 | L56: 9.7 | M56: 8
A57: Mittel | B57: =ROUND(AVERAGE(B33:B56),1) -> 0.6 | C57: =ROUND(AVERAGE(C33:C56),1) -> 96.1 | D57: =ROUND(AVERAGE(D33:D56),1) -> 999.6 | E57: =AVERAGE(E33:E56) -> 12.30833333 | F57: =ROUND(AVERAGE(F33:F56),1) -> 6.7 | H57: Mittel | I57: =ROUND(AVERAGE(I33:I56),1) -> 0.5 | J57: =ROUND(AVERAGE(J33:J56),1) -> 94.5 | K57: =ROUND(AVERAGE(K33:K56),1) -> 1004.5 | L57: =AVERAGE(L33:L56) -> 9.316666667 | M57: =ROUND(AVERAGE(M33:M56),1) -> 8
E59: 2013-05-31 | L59: 2013-06-01

Sheet Kurztabelle
A2: Wetterwarte: Köttewitz | L2: Monat: | M2: Mai | Y2: Jahr: | Z2: 2013
A4: Dat. | B4: TTT | C4: TxTx | D4: TnTn | E4: Tg | F4: Umin. | G4: UU | H4: NN | I4: RRRR | J4: Art | L4: sss | M4: PPPP | N4: eee | O4: fff | R4: Tage mit | V4: fk | W4: Summe
J5: * | O5: Bft | P5: SS | Q5: Art ( D ) | R5: NE | S5: Ge | T5: Bf6 | U5: Bf8 | V5: Bft | W5: Gewitter
A6: 01. | B6: 9.1 | C6: 12.4 | D6: 6.8 | E6: 6.7 | F6: 82 | G6: 91 | H6: 7.8 | I6: 0.2 | J6: R | L6: . | M6: 1024 | N6: 7.6 | O6: 1 | R6: 1 | V6: 3 | AA6: max >=30,0°C | AB6: max >=25,0°C | AC6: max <0,0°C | AE6: RR >=0,1 mm | AF6: RR >=1,0 mm | AG6: RR >=3,0 mm | AH6: RR >=10,0 mm
A7: 02. | B7: 10.6 | C7: 13 | D7: 7.2 | E7: 7.2 | F7: 84 | G7: 92 | H7: 8 | I7: 0.2 | J7: R | L7: . | M7: 1019.5 | N7: 9.3 | O7: 1 | R7: 1 | V7: 3 | AA7: =COUNTIF(C6:C15,">=30") -> 0 | AB7: =COUNTIF(C6:C15,">=25") -> 0 | AC7: =COUNTIF(C6:C15,"<0") -> 0 | AE7: =COUNTIF(I6:I15,">=0,1") -> 8 | AF7: =COUNTIF(I6:I15,">=1") -> 4 | AG7: =COUNTIF(I6:I15,">=3") -> 3 | AH7: =COUNTIF(I6:I15,">=10") -> 1
A8: 03. | B8: 10.2 | C8: 13.3 | D8: 8.1 | E8: 8.9 | F8: 67 | G8: 85 | H8: 8 | I8: 0.2 | J8: R | L8: 0.3 | M8: 1017 | N8: 7.6 | O8: 1 | R8: 1 | V8: 3 | AA8: =COUNTIF(C18:C27,">=30") -> 0 | AB8: =COUNTIF(C18:C27,">=25") -> 0 | AC8: =COUNTIF(C18:C27,"<0") -> 0 | AE8: =COUNTIF(I18:I27,">=0,1") -> 4 | AF8: =COUNTIF(I18:I27,">=1") -> 3 | AG8: =COUNTIF(I18:I27,">=3") -> 2 | AH8: =COUNTIF(I18:I27,">=10") -> 0
A9: 04. | B9: 11.7 | C9: 16 | D9: 6.8 | E9: 6.7 | F9: 66 | G9: 82 | H9: 6.4 | I9: . | L9: 2 | M9: 1017.8 | N9: 8.6 | O9: 1 | V9: 2 | AA9: =COUNTIF(C30:C39,">=30") -> 0 | AB9: =COUNTIF(C30:C39,">=25") -> 0 | AC9: =COUNTIF(C30:C39,"<0") -> 0 | AE9: =COUNTIF(I30:I39,">=0,1") -> 9 | AF9: =COUNTIF(I30:I39,">=1") -> 7 | AG9: =COUNTIF(I30:I39,">=3") -> 7 | AH9: =COUNTIF(I30:I39,">=10") -> 3
A10: 05. | B10: 14.2 | C10: 19.7 | D10: 9.2 | E10: 8.3 | F10: 43 | G10: 75 | H10: 4 | I10: . | L10: 10 | M10: 1022.9 | N10: 9.5 | O10: 1 | V10: 3
A11: 06. | B11: 13.8 | C11: 20 | D11: 9 | E11: 8.3 | F11: 70 | G11: 87 | H11: 6.8 | I11: 2.9 | J11: R | L11: 4.2 | M11: 1020.7 | N11: 11.4 | O11: 1 | R11: 1 | V11: 4 | AA11: min <0,0°C | AB11: min <0-10,0°C | AE11: rel.Lf. 14h >=70% | AG11: rel.Lf. 14h <=40%
A12: 07. | B12: 15.3 | C12: 21 | D12: 12.2 | E12: 12.2 | F12: 77 | G12: 94 | H12: 7.4 | I12: 4.3 | J12: R | L12: 0.1 | M12: 1015.4 | N12: 14.3 | O12: 0 | R12: 1 | S12: 1 | V12: 3 | AA12: =COUNTIF(D6:D15,"<0") -> 0 | AB12: =COUNTIF(D6:D15,"<=-10") -> 0 | AE12: =COUNTIF(F6:F15,">=70") -> 5 | AG12: =COUNTIF(F6:F15,"<=40") -> 0
A13: 08. | B13: 16.8 | C13: 23.1 | D13: 12.2 | E13: 11.7 | F13: 59 | G13: 86 | H13: 5.1 | I13: 0.2 | J13: R | L13: 6.3 | M13: 1014 | N13: 14.2 | O13: 1 | R13: 1 | V13: 3 | AA13: =COUNTIF(D18:D27,"<0") -> 0 | AB13: =COUNTIF(D18:D27,"<=-10") -> 0 | AE13: =COUNTIF(F18:F27,">=70") -> 0 | AG13: =COUNTIF(F18:F27,"<=40") -> 0
A14: 09. | B14: 15.9 | C14: 21.4 | D14: 12.6 | E14: 12.2 | F14: 68 | G14: 93 | H14: 5.9 | I14: 15.7 | J14: R | L14: 4.5 | M14: 1013.5 | N14: 14.7 | O14: 0 | R14: 1 | S14: 1 | V14: 2 | X14: 4 | AA14: =COUNTIF(D30:D39,"<0") -> 0 | AB14: =COUNTIF(D30:D39,"<=-10") -> 0 | AE14: =COUNTIF(F30:F39,">=70") -> 4 | AG14: =COUNTIF(F30:F39,"<=40") -> 0
A15: 10. | B15: 13 | C15: 14.4 | D15: 9.8 | E15: 9.4 | F15: 87 | G15: 95 | H15: 7.2 | I15: 8.1 | J15: R | L15: . | M15: 1013.2 | N15: 12.3 | O15: 0 | R15: 1 | V15: 3
A16: Su | B16: =SUM(B6:B15) -> 130.6 | C16: =SUM(C6:C15) -> 174.3 | D16: =SUM(D6:D15) -> 93.9 | E16: =SUM(E6:E15) -> 91.6 | F16: XXX | G16: =SUM(G6:G15) -> 880 | H16: =SUM(H6:H15) -> 66.6 | I16: =SUM(I6:I15) -> 31.8 | J16: =SUM(K6:K15) -> 0 | L16: =SUM(L6:L15) -> 27.4 | M16: =SUM(M6:M15) -> 10178 | N16: =SUM(N6:N15) -> 109.5 | O16: =SUM(O6:O15) -> 7 | P16: =COUNT(P6:P15) -> 0 | Q16: X | R16: =SUM(R6:R15) -> 8 | S16: =SUM(S6:S15) -> 2 | T16: =SUM(T6:T15) -> 0 | U16: =SUM(U6:U15) -> 0 | V16: XXX | AA16: ohne Sonne | AB16: Son. 0,1-0,9 | AC16: Son. >=10,0 | AE16: Sch. >=1 cm | AF16: Sch. >=3 cm | AG16: Sch. >=10 cm
A17: Mi | B17: =SUM(B16/10) -> 13.06 | C17: =AVERAGE(C16/10) -> 17.43 | D17: =AVERAGE(D16/10) -> 9.39 | E17: =E16/10 -> 9.16 | F17: XXX | G17: =AVERAGE(G16/10) -> 88 | H17: =AVERAGE(H16/10) -> 6.66 | I17: XXXXX | J17: XX | L17: XXXX | M17: =AVERAGE(M16/10) -> 1017.8 | N17: =AVERAGE(N16/10) -> 10.95 | O17: =O16/10 -> 0.7 | P17: XXX | Q17: X | R17: XX | S17: XX | T17: XX | U17: XX | V17: =AVERAGE(V6:V15) -> 2.9 | AA17: =COUNTIF(L6:L15,".") -> 3 | AB17: =COUNTIF(L6:L15,"<1") -> 2 | AC17: =COUNTIF(L6:L15,">=10") -> 1 | AE17: =COUNTIF(P6:P15,">=1") -> 0 | AF17: =COUNTIF(P6:P15,">=3") -> 0 | AG17: =COUNTIF(P6:P15,">=10") -> 0
A18: 11. | B18: 12.6 | C18: 16.3 | D18: 9.1 | E18: 8.9 | F18: 59 | G18: 82 | H18: 7.6 | I18: . | L18: 0.5 | M18: 1015 | N18: 9.4 | O18: 1 | V18: 2 | AA18: =COUNTIF(L18:L27,".") -> 0 | AB18: =COUNTIF(L18:L27,"<1") -> 1 | AC18: =COUNTIF(L18:L27,">=10") -> 2 | AE18: =COUNTIF(P18:P27,">=1") -> 0 | AF18: =COUNTIF(P18:P27,">=3") -> 0 | AG18: =COUNTIF(P18:P27,">=10") -> 0
A19: 12. | B19: 11 | C19: 17.7 | D19: 6.9 | E19: 6 | F19: 51 | G19: 80 | H19: 5.9 | I19: 4 | J19: R | L19: 6.5 | M19: 1013.6 | N19: 7.6 | O19: 1 | R19: 1 | V19: 4 | AA19: =COUNTIF(L30:L39,".") -> 4 | AB19: =COUNTIF(L30:L39,"<1") -> 2 | AC19: =COUNTIF(L30:L39,">=10") -> 0 | AE19: =COUNTIF(P30:P39,">=1") -> 0 | AF19: =COUNTIF(P30:P39,">=3") -> 0 | AG19: =COUNTIF(P30:P39,">=10") -> 0
A20: 13. | B20: 10.9 | C20: 16.2 | D20: 5.2 | E20: 4.4 | F20: 43 | G20: 71 | H20: 3.8 | I20: . | L20: 9.5 | M20: 1015.9 | N20: 5.5 | O20: 1 | V20: 3
A21: 14. | B21: 13.8 | C21: 19.4 | D21: 8.3 | E21: 7.2 | F21: 44 | G21: 67 | H21: 5.6 | I21: . | L21: 6.7 | M21: 1011.9 | N21: 7.5 | O21: 1 | V21: 3 | AA21: Max TT | AB21: Max TxTx | AC21: Min TgTg | AE21: Max RR
A22: 15. | B22: 16.4 | C22: 23.6 | D22: 7.4 | E22: 6.7 | F22: 45 | G22: 69 | H22: 1.3 | I22: . | L22: 12.7 | M22: 1004.9 | N22: 10.1 | O22: 1 | V22: 3 | AA22: =MAX(B6:B15,B18:B27,B30:B39) -> 18.6 | AB22: =MAX(C6:C15,C18:C27,C30:C39) -> 24.6 | AC22: =MIN(E6:E15,E18:E27,E30:E39) -> 3.3 | AE22: =MAX(I6:I15,I18:I27,I30:I39) -> 33.1
A23: 16. | B23: 17.8 | C23: 23.2 | D23: 10.9 | E23: 10 | F23: 49 | G23: 70 | H23: 4.3 | I23: . | L23: 8.7 | M23: 999.6 | N23: 11.9 | O23: 1 | V23: 3 | AA23: Min TT | AB23: Min TnTn | AC23: Min U14 | AE23: Max SS
A24: 17. | B24: 18.6 | C24: 24.6 | D24: 13.7 | E24: 12.2 | F24: 52 | G24: 71 | H24: 5.1 | I24: 0.3 | J24: R | L24: 8 | M24: 998.8 | N24: 13.2 | O24: 1 | R24: 1 | V24: 3 | AA24: =MIN(B6:B15,B18:B27,B30:B39) -> 7.1 | AB24: =MIN(D6:D15,D18:D27,D30:D39) -> 3.7 | AC24: =MIN(F6:F15,F18:F27,F30:F39) -> 42 | AE24: =MAX(P6:P15,P18:P27,P30:P39) -> 0
A25: 18. | B25: 14.1 | C25: 18.3 | D25: 8.7 | E25: 8.4 | F25: 57 | G25: 84 | H25: 5.5 | I25: 8.6 | J25: R | L25: 2.3 | M25: 1006.7 | N25: 11.5 | O25: 1 | R25: 1 | V25: 4
A26: 19. | B26: 15.6 | C26: 24.2 | D26: 6.2 | E26: 6.1 | F26: 44 | G26: 78 | H26: 1.9 | I26: 2.3 | J26: R | L26: 13.2 | M26: 1007.3 | N26: 11.2 | O26: 1 | R26: 1 | S26: 1 | V26: 4
A27: 20. | B27: 14.4 | C27: 19.3 | D27: 11.1 | E27: 10.6 | F27: 42 | G27: 69 | H27: 6 | I27: . | L27: 4.2 | M27: 1009.6 | N27: 8.4 | O27: 1 | V27: 3
A28: Su | B28: =SUM(B18:B27) -> 145.2 | C28: =SUM(C18:C27) -> 202.8 | D28: =SUM(D18:D27) -> 87.5 | E28: =SUM(E18:E27) -> 80.5 | F28: XXX | G28: =SUM(G18:G27) -> 741 | H28: =SUM(H18:H27) -> 47 | I28: =SUM(I18:I27) -> 15.2 | J28: =SUM(K18:K27) -> 0 | L28: =SUM(L18:L27) -> 72.3 | M28: =SUM(M18:M27) -> 10083.3 | N28: =SUM(N18:N27) -> 96.3 | O28: =SUM(O18:O27) -> 10 | P28: =COUNT(P18:P27) -> 0 | Q28: X | R28: =SUM(R18:R27) -> 4 | S28: =SUM(S18:S27) -> 1 | T28: =SUM(T18:T27) -> 0 | U28: =SUM(U18:U27) -> 0 | V28: XXX
A29: Mi | B29: =AVERAGE(B28/10) -> 14.52 | C29: =AVERAGE(C28/10) -> 20.28 | D29: =AVERAGE(D28/10) -> 8.75 | E29: =AVERAGE(E28/10) -> 8.05 | F29: XXX | G29: =AVERAGE(G28/10) -> 74.1 | H29: =AVERAGE(H28/10) -> 4.7 | I29: XXXXX | J29: XX | L29: XXXX | M29: =AVERAGE(M28/10) -> 1008.33 | N29: =AVERAGE(N28/10) -> 9.63 | O29: =O28/10 -> 1 | P29: XXX | Q29: X | R29: XX | S29: XX | T29: XX | U29: XX | V29: =AVERAGE(V18:V27) -> 3.2
A30: 21. | B30: 12.7 | C30: 18 | D30: 7.2 | E30: 6.7 | F30: 49 | G30: 72 | H30: 4.7 | I30: 0.8 | J30: R | L30: 6.5 | M30: 1010.6 | N30: 7.6 | O30: 1 | R30: 1 | V30: 4
A31: 22. | B31: 9.4 | C31: 15.6 | D31: 6.7 | E31: 6.7 | F31: 65 | G31: 89 | H31: 7.4 | I31: 6.1 | J31: R | L31: 0.5 | M31: 1006.5 | N31: 7.7 | O31: 1 | R31: 1 | V31: 5
A32: 23. | B32: 8.4 | C32: 13.3 | D32: 3.7 | E32: 3.3 | F32: 46 | G32: 71 | H32: 5.7 | I32: . | L32: 5.5 | M32: 1008.7 | N32: 3.4 | O32: 1 | V32: 3
A33: 24. | B33: 7.7 | C33: 12.1 | D33: 3.9 | E33: 3.9 | F33: 62 | G33: 82 | H33: 7.4 | I33: 6 | J33: R | L33: 0.7 | M33: 1010 | N33: 4.7 | O33: 1 | V33: 3
A34: 25. | B34: 9.1 | C34: 14 | D34: 6.7 | E34: 6.7 | F34: 56 | G34: 83 | H34: 7.7 | I34: 4 | J34: R | L34: 1.3 | M34: 1009.5 | N34: 6.3 | O34: 1 | R34: 1 | V34: 4
A35: 26. | B35: 7.1 | C35: 8.6 | D35: 5.7 | E35: 5.6 | F35: 85 | G35: 92 | H35: 8 | I35: 23 | J35: R | L35: . | M35: 1004.2 | N35: 5.8 | O35: 1 | R35: 1 | V35: 4
A36: 27. | B36: 9.1 | C36: 11.4 | D36: 7.2 | E36: 7.8 | F36: 93 | G36: 97 | H36: 7.9 | I36: 3 | J36: R | L36: . | M36: 1006.3 | N36: 8.7 | O36: 1 | R36: 1 | V36: 3
A37: 28. | B37: 10.2 | C37: 12.3 | D37: 7.5 | E37: 7.2 | F37: 87 | G37: 94 | H37: 8 | I37: 33.1 | J37: R | L37: . | M37: 1004.5 | N37: 9.3 | O37: 1 | R37: 1 | V37: 3
A38: 29. | B38: 13.4 | C38: 19.7 | D38: 8.6 | E38: 8.9 | F38: 62 | G38: 88 | H38: 6.8 | I38: 0.7 | J38: R | L38: 4.2 | M38: 1000.7 | N38: 11.3 | O38: 1 | R38: 1 | S38: 1 | V38: 3
A39: 30. | B39: 10.7 | C39: 13.2 | D39: 9.1 | E39: 9.4 | F39: 86 | G39: 93 | H39: 8 | I39: 29.4 | J39: R | L39: . | M39: 1003.5 | N39: 9.5 | O39: 1 | R39: 1 | V39: 3
A40: 31. | B40: 12.9 | C40: 15.4 | D40: 8.3 | E40: 8.2 | F40: 83 | G40: 96 | H40: 6.7 | I40: 6.7 | J40: R | L40: 0.3 | M40: 999.6 | N40: 12.3 | O40: 1 | R40: 1 | V40: 3
A41: Su | B41: =SUM(B30:B40) -> 110.7 | C41: =SUM(C30:C40) -> 153.6 | D41: 74.6 | E41: 74.4 | F41: XXX | G41: =SUM(G30:G40) -> 957 | H41: =SUM(H30:H40) -> 78.3 | I41: =SUM(I30:I40) -> 112.8 | J41: =SUM(K30:K39) -> 0 | L41: =SUM(L30:L40) -> 19 | M41: =SUM(M30:M40) -> 11064.1 | N41: =SUM(N30:N40) -> 86.6 | O41: =SUM(O30:O40) -> 11 | P41: =COUNT(P30:P40) -> 0 | Q41: X | R41: =SUM(R30:R40) -> 9 | S41: =SUM(S30:S40) -> 1 | T41: 0 | U41: 0 | V41: XXX
A42: Mi | B42: =AVERAGE(B41/11) -> 10.06363636 | C42: =AVERAGE(C41/11) -> 13.96363636 | D42: 6.781818182 | E42: 6.763636364 | F42: XXX | G42: =AVERAGE(G41/11) -> 87 | H42: =AVERAGE(H41/11) -> 7.118181818 | I42: XXXXX | J42: XX | L42: XXXX | M42: =AVERAGE(M41/11) -> 1005.827273 | N42: =AVERAGE(N41/11) -> 7.872727273 | O42: =AVERAGE(O41/11) -> 1 | P42: XXX | Q42: X | R42: XX | S42: XX | T42: XX | U42: XX | V42: =AVERAGE(V30:V39) -> 3.5
A43: MSu | B43: =SUM(B16+B28+B41) -> 386.5 | C43: =SUM(C16+C28+C41) -> 530.7 | D43: =SUM(D16+D28+D41) -> 256 | E43: =SUM(E16+E28+E41) -> 246.5 | F43: XXX | G43: =SUM(G16+G28+G41) -> 2578 | H43: =SUM(H16+H28+H41) -> 191.9 | I43: =SUM(I16+I28+I41) -> 159.8 | J43: =SUM(J16+J28+J41) -> 0 | L43: =SUM(L16+L28+L41) -> 118.7 | M43: =SUM(M16+M28+M41) -> 31325.4 | N43: =SUM(N16+N28+N41) -> 292.4 | O43: XXX | P43: =SUM(P16+P28+P41) -> 0 | Q43: X | R43: =SUM(R16+R28+R41) -> 21 | S43: =SUM(S16+S28+S41) -> 4 | T43: =SUM(T16+T28+T41) -> 0 | U43: =SUM(U16+U28+U41) -> 0 | V43: XXX | X43: 7
A44: MMi | B44: =AVERAGE(B17,B29,B42) -> 12.54787879 | C44: =AVERAGE(C43/30) -> 17.69 | D44: =AVERAGE(D43/30) -> 8.533333333 | E44: =AVERAGE(E43/30) -> 8.216666667 | F44: XXX | G44: =AVERAGE(G43/31) -> 83.16129032 | H44: =AVERAGE(H43/31) -> 6.190322581 | I44: XXXXX | J44: XX | L44: XXXX | M44: =AVERAGE(M43/31) -> 1010.496774 | N44: =AVERAGE(N43/31) -> 9.432258065 | O44: =AVERAGE(O17,O29,O42) -> 0.9 | P44: XXX | Q44: X | R44: XX | S44: XX | T44: XX | U44: XX | V44: =AVERAGE(V17,V29,V42) -> 3.2
B46: Norm | C46: % v N.- | D46: Abw. | E46: Zahl der Tage | L46: Niederschlag mm | P46: Sonnensch.-dauer Std
B47: wert | C47: wert | D47: K | E47: Max.d.Lufttemp.°C | L47: >/= 0,1 | O47: =SUM(AE7:AE9) -> 21 | P47: ohne Sonne | V47: 7
A48: TTT | B48: 13.8 | C48: XXXX | D48: =SUM(B44-B48) -> -1.252121212 | E48: Tropentag/Hitzetag | I48: =SUM(AA7:AA9) -> 0 | L48: >/= 1,0 | O48: =SUM(AF7:AF9) -> 14 | P48: 0,1 bis 0,9 | V48: 2
A49: RRR | B49: 60 | C49: =SUM(I43*100/B49) -> 266.3333333 | D49: XXXX | E49: Sommertag | I49: =SUM(AB7:AB9) -> 0 | L49: >/= 3,0 | O49: =SUM(AG7:AG9) -> 12 | P49: >/= 10,0 | V49: =SUM(AC17:AC19) -> 3
A50: sss | B50: 211 | C50: =SUM(L43*100/B50) -> 56.25592417 | D50: XXXX | E50: Eistag | I50: =SUM(AC7:AC9) -> 0 | L50: >/=10,0 | O50: =SUM(AH7:AH9) -> 4 | P50: Schneedecke cm
A51: astr. | D51: XXXX | E51: Min.d.Lufttemp.°C | L51: >/= 20,0 | O51: 3 | P51: >/= 1 | V51: =SUM(AE17:AE19) -> 0
A52: mgl. | B52: 465 | C52: =SUM(L43*100/B52) -> 25.52688172 | D52: XXXX | E52: Frosttag | I52: =SUM(AA12:AA14) -> 0 | L52: Rel. Luftfeuchte 14 Uhr | P52: >/= 3 | V52: =SUM(AF17:AF19) -> 0
A53: sss | D53: XXXX | E53: starker Eistag | I53: =SUM(AB12:AB14) -> 0 | L53: >/=70% | O53: =SUM(AE12:AE14) -> 9 | P53: >/= 10 | V53: =SUM(AG17:AG19) -> 0
L54: </=40% | O54: =SUM(AG12:AG14) -> 0

Sheet Sichtst.
E1: Sichtweitenstatistik
B5: Wetterstation: Köttewitz | F5: Monat: | G5: Mai | K5: Jahr: | L5: 2013
A7: Dat. | B7: Nebeldauer | C7: Nebel | D7: Dunst | E7: Sicht | F7: Sicht | G7: Sicht | H7: Sicht
B8: in St. u. Min. | E8: mittel | F8: normal | G8: gut | H8: sehr gut
A9: 01. | B9: - | C9: =IF(R9=1,1,"-") -> - | D9: 1 | E9: 1 | F9: - | G9: - | H9: - | N9: =IF(ISNUMBER(B9),B9*24," ") ->  | O9: =IF(ISNUMBER(N9),IF(N9<1,1," ")," ") ->  | P9: =IF(ISNUMBER(N9),IF(N9<8,2," ")," ") ->  | Q9: =IF(ISNUMBER(N9),IF(N9<24,3," ")," ") ->  | R9: =MIN(O9:Q9) -> 0
A10: 02. | B10: - | C10: - | D10: 1 | E10: - | F10: - | G10: - | H10: - | R10: 0
A11: 03. | B11: - | C11: - | D11: 1 | E11: 1 | F11: 1 | G11: - | H11: - | R11: 0
A12: 04. | B12: - | C12: - | D12: - | E12: 1 | F12: 1 | G12: - | H12: - | R12: 0
A13: 05. | B13: - | C13: - | D13: - | E13: 1 | F13: 1 | G13: - | H13: - | R13: 0
A14: 06. | B14: - | C14: - | D14: 1 | E14: 1 | F14: - | G14: - | H14: - | R14: 0
A15: 07. | B15: 01:00:00 | C15: 1 | D15: 1 | E15: 1 | F15: 1 | G15: - | H15: - | N15: 1 | P15: 2 | Q15: 3 | R15: 2
A16: 08. | B16: - | C16: - | D16: - | E16: 1 | F16: 1 | G16: - | H16: - | R16: 0
A17: 09. | B17: - | C17: - | D17: - | E17: - | F17: 1 | G17: - | H17: - | R17: 0
A18: 10. | B18: - | C18: - | D18: - | E18: 1 | F18: 1 | G18: - | H18: - | R18: 0
A19: 11. | B19: - | C19: - | D19: - | E19: 1 | F19: 1 | G19: - | H19: - | R19: 0
A20: 12. | B20: - | C20: - | D20: - | E20: 1 | F20: 1 | G20: - | H20: - | R20: 0
A21: 13. | B21: - | C21: - | D21: - | E21: - | F21: 1 | G21: 1 | H21: 1 | R21: 0
A22: 14. | B22: - | C22: - | D22: - | E22: - | F22: 1 | G22: 1 | H22: - | R22: 0
A23: 15. | B23: - | C23: - | D23: - | E23: - | F23: 1 | G23: 1 | H23: - | R23: 0
A24: 16. | B24: - | C24: - | D24: - | E24: - | F24: 1 | G24: 1 | H24: - | R24: 0
A25: 17. | B25: - | C25: - | D25: - | E25: - | F25: 1 | G25: 1 | H25: - | R25: 0
A26: 18. | B26: - | C26: - | D26: - | E26: 1 | F26: 1 | G26: - | H26: - | R26: 0
A27: 19. | B27: - | C27: - | D27: - | E27: - | F27: 1 | G27: 1 | H27: 1 | R27: 0
A28: 20. | B28: - | C28: - | D28: - | E28: - | F28: 1 | G28: 1 | H28: 1 | R28: 0
A29: 21. | B29: - | C29: - | D29: - | E29: - | F29: 1 | G29: 1 | H29: 1 | R29: 0
A30: 22. | B30: - | C30: - | D30: - | E30: 1 | F30: 1 | G30: - | H30: - | R30: 0
A31: 23. | B31: - | C31: - | D31: - | E31: 1 | F31: 1 | G31: - | H31: - | R31: 0
A32: 24. | B32: - | C32: - | D32: - | E32: 1 | F32: 1 | G32: - | H32: - | R32: 0
A33: 25. | B33: - | C33: - | D33: - | E33: 1 | F33: 1 | G33: - | H33: - | R33: 0
A34: 26. | B34: - | C34: - | D34: 1 | E34: 1 | F34: - | G34: - | H34: - | R34: 0
A35: 27. | B35: - | C35: - | D35: 1 | E35: 1 | F35: - | G35: - | H35: - | R35: 0
A36: 28. | B36: - | C36: - | D36: 1 | E36: 1 | F36: - | G36: - | H36: - | R36: 0
A37: 29. | B37: - | C37: - | D37: - | E37: 1 | F37: 1 | G37: - | H37: - | R37: 0
A38: 30. | B38: 03:40:00 | C38: 1 | D38: 1 | E38: 1 | F38: 1 | G38: - | H38: - | N38: 3.666666667 | P38: 2 | Q38: 3 | R38: 2
A39: 31. | B39: 05:00:00 | C39: 1 | D39: 1 | E39: 1 | F39: 1 | G39: 1 | H39: 1 | N39: 5 | P39: 2 | Q39: 3 | R39: 2
A40: Su. | B40: XXXXXXXXX | C40: =SUM(C9:C39) -> 3 | D40: =SUM(D9:D39) -> 10 | E40: 21 | F40: 25 | G40: 9 | H40: 5
B42: Anzahl der Nebeltage : | E42: =SUM(C40) -> 3
B43: Anzahl der Tage Sicht >= 50 km : | E43: =SUM(G40) -> 9

Sheet Monatsdiagramm
A1: Klimadiagramm | C1: Wetterstation Köttewitz | I1: (213 m ü. NHN)
A3: Mai 2013
C5: aktuell | D5: langj. Mittel | E5: Abw. vom lj. Mittel
B6: höchste Temperatur (°C): | C6: =MAX('Daten für Diagr.'!C2:C29) -> 24.6 | D6: am | E6: 2013-05-15
B7: mittlere Temperatur (°C): | C7: ='Daten für Diagr.'!B33 -> 12.46774194 | D7: =Kurztabelle!B48 -> 13.8 | E7: =C7-D7 -> -1.332258065 | F7: K
B8: tiefste Temperatur (°C): | C8: =MIN('Daten für Diagr.'!D2:D29) -> 3.7 | D8: am | E8: 2013-05-23
B9: Niederschlagshöhe (mm): | C9: =Kurztabelle!I43 -> 159.8 | D9: =Kurztabelle!B49 -> 60 | E9: =100/D9*C9 -> 266.3333333 | F9: %
B10: Sonnenscheindauer (Std.)*: | C10: =Kurztabelle!L43 -> 118.7 | D10: =Kurztabelle!B50 -> 211 | E10: =100/D10*C10 -> 56.25592417 | F10: %
A66: *Die Wetterstation kann, durch geographische Hindernisse, nicht die maximal mögliche Sonnenscheindauer aufzeichnen. Es gilt ein Übergangsprozentsatz von: Nov - Feb 50 %; Mär & Okt 65 %; Apr & Sep 80 %; Mai - August 90 %.
A67: Diese Werte entsprechend annähernd 100 % (Normalwert Köttewitz). Nach 10 Jahren erfolgt die Umstellung des Prozentsatzes nach der örtlichen Aufzeichnung.

Sheet Daten für Diagr.
B1: Td | C1: Tmax | D1: Tmin | E1: RR | F1: Schnee | G1: Sonne | H1: Luftdr. | I1: MWT | J1: GWL | K1: Name | L1: Sonstiges
A2: 2013-05-01 | B2: 9.1 | C2: 12.4 | D2: 6.8 | E2: 0.2 | H2: 1024 | I2: 11.3
A3: 2013-05-02 | B3: 10.6 | C3: 13 | D3: 7.2 | E3: 0.2 | H3: 1019.5 | I3: 11.5 | L3: Von 20:00 Uhr - 23:59 Uhr starker Dunst (Sprühregen). Von 19:00 Uhr - 19:59 Uhr mäßiger Dunst. Von 00:00 Uhr - 19:59 Uhr leichter Dunst.
A4: 2013-05-03 | B4: 10.2 | C4: 13.3 | D4: 8.1 | E4: 0.2 | G4: 0.3 | H4: 1017 | I4: 11.7 | J4: HB | K4: H Regine | L4: Beginn des phänologischen Vollfrühlings.
A5: 2013-05-04 | B5: 11.7 | C5: 16 | D5: 6.8 | G5: 2 | H5: 1017.8 | I5: 11.9 | L5: Beginn der Apfelblüte.
A6: 2013-05-05 | B6: 14.2 | C6: 19.7 | D6: 9.2 | G6: 10 | H6: 1022.9 | I6: 12.1
A7: 2013-05-06 | B7: 13.8 | C7: 20 | D7: 9 | E7: 2.9 | G7: 4.2 | H7: 1020.7 | I7: 12.3 | J7: SEz | L7: Von 23:10 - 23:59 Uhr mäßiger Dunst.Von 21:00 Uhr - 23:09 Uhr leichter Dunst.
A8: 2013-05-07 | B8: 15.3 | C8: 21 | D8: 12.2 | E8: 4.3 | G8: 0.1 | H8: 1015.4 | I8: 12.5 | L8: Von 06:40 Uhr - 07:29 Uhr mäßiger Nebel.Von 06:30 Uhr - 06:39 Uhr leichter Nebel. Von 01:30 Uhr - 06:29 Uhr; 07:30 Uhr - 07:49 Uhr starker Dunst.Von 00:00 Uhr - 01:29 Uhr; 07:50 Uhr - 09:09 Uhr mäßiger Dunst.
A9: 2013-05-08 | B9: 16.8 | C9: 23.1 | D9: 12.2 | E9: 0.2 | G9: 6.3 | H9: 1014 | I9: 12.65 | L9: Beginn der Fliederblüte. Beginn des Maitriebes bei Tanne. Leicht schwül.
A10: 2013-05-09 | B10: 15.9 | C10: 21.4 | D10: 12.6 | E10: 15.7 | G10: 4.5 | H10: 1013.5 | I10: 12.85 | J10: SWz | K10: T Xaver | L10: Von 11:10 Uhr - 11:29 Uhr; 16:00 Uhr - 17:19 Uhr Gewitter mit Starkniederschlag aus SW. Von 14:20 Uhr - 14:39 Uhr; 15:15 - 15:24 Uhr Gewitter mit mäßigen Niederschlag aus SW. Leicht schwül. Von 11:10 - 11:29 Uhr, 6/6 (74,8 mm/h) Niederschlagsrate.
A11: 2013-05-10 | B11: 13 | C11: 14.4 | D11: 9.8 | E11: 8.1 | H11: 1013.2 | I11: 13
A12: 2013-05-11 | B12: 12.6 | C12: 16.3 | D12: 9.1 | G12: 0.5 | H12: 1015 | I12: 13.2 | J12: TrW | K12: T Jago
A13: 2013-05-12 | B13: 11 | C13: 17.7 | D13: 6.9 | G13: 6.5 | H13: 1013.6 | I13: 13.35
A14: 2013-05-13 | B14: 10.9 | C14: 16.2 | D14: 5.2 | G14: 9.5 | H14: 1015.9 | I14: 13.5 | J14: Wz | K14: T Zacharias
A15: 2013-05-14 | B15: 13.8 | C15: 19.4 | D15: 8.3 | G15: 6.7 | H15: 1011.9 | I15: 13.65
A16: 2013-05-15 | B16: 16.4 | C16: 23.6 | D16: 7.4 | G16: 12.7 | H16: 1004.9 | I16: 13.8 | J16: TrW
A17: 2013-05-16 | B17: 17.8 | C17: 23.2 | D17: 10.9 | G17: 8.7 | H17: 999.6 | I17: 13.95 | J17: TM | K17: T Alfred
A18: 2013-05-17 | B18: 18.6 | C18: 24.6 | D18: 13.7 | E18: 0.3 | G18: 8 | H18: 998.8 | I18: 14.1
A19: 2013-05-18 | B19: 14.1 | C19: 18.3 | D19: 8.7 | E19: 8.6 | G19: 2.3 | H19: 1006.7 | I19: 14.25
A20: 2013-05-19 | B20: 15.6 | C20: 24.2 | D20: 6.2 | E20: 2.3 | G20: 13.2 | H20: 1007.3 | I20: 14.4 | L20: Beginn des Ährenschieben der Wintergerste.
A21: 2013-05-20 | B21: 14.4 | C21: 19.3 | D21: 11.1 | G21: 4.2 | H21: 1009.6 | I21: 14.55
A22: 2013-05-21 | B22: 12.7 | C22: 18 | D22: 7.2 | E22: 0.8 | G22: 6.5 | H22: 1010.6 | I22: 14.65 | J22: TrM | K22: T Bob
A23: 2013-05-22 | B23: 9.4 | C23: 15.6 | D23: 6.7 | E23: 6.1 | G23: 0.5 | H23: 1006.5 | I23: 14.8
A24: 2013-05-23 | B24: 8.4 | C24: 13.3 | D24: 3.7 | G24: 5.5 | H24: 1008.7 | I24: 14.9
A25: 2013-05-24 | B25: 7.7 | C25: 12.1 | D25: 3.9 | E25: 0.6 | G25: 0.7 | H25: 1010 | I25: 15.05 | J25: NEz | K25: T Christoffer
A26: 2013-05-25 | B26: 9.1 | C26: 14 | D26: 6.7 | E26: 4 | G26: 1.3 | H26: 1009.5 | I26: 15.15
A27: 2013-05-26 | B27: 7.1 | C27: 8.6 | D27: 5.7 | E27: 23 | H27: 1004.2 | I27: 15.25 | J27: TM | L27: Von 16:10 Uhr - 23:59 Uhr leichter Dunst.
A28: 2013-05-27 | B28: 9.1 | C28: 11.4 | D28: 7.2 | E28: 3 | H28: 1006.3 | I28: 15.35 | L28: Von 08:30 Uhr - 11:09 Uhr mäßiger Dunst.Von 00:00 Uhr - 06:29 Uhr leichter Dunst. Von 08:30 Uhr - 11:09 Uhr Sichteinschränkung durch Niederschlag.
A29: 2013-05-28 | B29: 10.2 | C29: 12.3 | D29: 7.5 | E29: 33.1 | H29: 1004.5 | I29: 15.45 | K29: T Dominik | L29: Von 20:00 Uhr - 23:59 Uhr mäßiger Dunst. Von 19:00 Uhr - 19:59 Uhr leichter Dunst.
A30: 2013-05-29 | B30: 13.4 | C30: 19.7 | D30: 8.6 | E30: 0.7 | G30: 4.2 | H30: 1000.7 | I30: 15.55 | L30: Von 00:00 Uhr - 00:39 Uhr leichter Dunst.
A31: 2013-05-30 | B31: 10.7 | C31: 13.2 | D31: 9.1 | E31: 29.4 | H31: 1003.5 | I31: 15.65 | K31: T Frederik | L31: Von 19:20 Uhr - 23:59 Uhr leichter Nebel. Von 18:30 Uhr - 19:49 Uhr starker Dunst. Von 14:30 Uhr - 17:09 Uhr mäßiger Dunst. Von 17:10 Uhr - 18:09 Uhr leichter Dunst. Von 14:30 Uhr - 23:59 Uhr Sichteinschränkung durch Niederschlag.
A32: 2013-05-31 | B32: 12.9 | C32: 15.4 | D32: 8.3 | E32: 6.7 | G32: 0.3 | H32: 999.6 | I32: 15.75 | L32: Von 00:00 Uhr - 04:59 Uhr leichter Nebel. Von 05:00 Uhr - 05:29 Uhr starker Dunst. Von 05:30 Uhr - 05:59 Uhr mäßiger Dunst. Von 06:00 Uhr - 06:30 Uhr leichter Dunst.
A33: Durchschnitt | B33: =AVERAGE(B2:B32) -> 12.46774194 | C33: =AVERAGE(C2:C32) -> 17.11935484 | D33: =AVERAGE(D2:D32) -> 8.258064516 | H33: =AVERAGE(H2:H32) -> 1010.496774 | I33: =AVERAGE(I2:I32) -> 13.80967742
A34: Mittel | B34: 13.8 | E34: 60 | F34: - | G34: 211 | H34: 1015.7
A90: 1
A91: 2
A92: 3
A93: 4
A94: 5
A95: 6
A96: 7
A97: 8
A98: 9
A99: 10
A100: 11
A101: 12
A102: 13
A103: 14
A104: 15
A105: 16
A106: 17
A107: 18
A108: 19
A109: 20
A110: 21
A111: 22
A112: 23
A113: 24
A114: 25
A115: 26
A116: 27
A117: 28
A118: 29
A119: 30
A120: 31
